[Event "Early Titled Tuesday Blitz | February 8 2022"]
[White "Mohammed, Dilshad"]
[Black "Vusatiuk, Vladimir"]
[WhiteFideId "5050421"]
[BlackFideId "14118610"]
[WhiteElo "2153"]
[BlackElo "2157"]
[Result "1-0"]
[Round "04"]
[TimeControl "180+1"]
[Date "2022.02.08"]
[WhiteClock "0:00:27"]
[BlackClock "0:00:06"]

1. Nf3 {[%clk 0:02:58]}  d5 {[%clk 0:02:59]} 2. c4 {[%clk 0:02:58]}  e6 {[%clk 0:02:59]} 3. e3 {[%clk 0:02:57]}  Nf6 {[%clk 0:02:59]} 4. cxd5 {[%clk 0:02:57]}  exd5 {[%clk 0:02:59]} 5. d4 {[%clk 0:02:58]}  Bf5 {[%clk 0:02:48]} 6. Qb3 {[%clk 0:02:53]}  Nbd7 {[%clk 0:02:47]} 7. Nc3 {[%clk 0:02:48]}  c6 {[%clk 0:01:38]} 8. Qxb7 {[%clk 0:02:44]}  Be7 {[%clk 0:01:32]} 9. Qa6 {[%clk 0:02:31]}  O-O {[%clk 0:01:28]} 10. Bd3 {[%clk 0:02:31]}  Nb8 {[%clk 0:01:19]} 11. Qb7 {[%clk 0:02:18]}  Bxd3 {[%clk 0:01:10]} 12. Qxa8 {[%clk 0:02:03]}  Qc7 {[%clk 0:01:10]} 13. Ne5 {[%clk 0:01:58]}  Ba6 {[%clk 0:01:00]} 14. Bd2 {[%clk 0:01:56]}  Nfd7 {[%clk 0:00:55]} 15. Rc1 {[%clk 0:01:49]}  Nb6 {[%clk 0:00:41]} 16. Nxd5 {[%clk 0:01:38]}  Nxd5 {[%clk 0:00:41]} 17. Nxc6 {[%clk 0:01:35]}  Nxc6 {[%clk 0:00:09]} 18. Qxc6 {[%clk 0:01:33]}  Qxc6 {[%clk 0:00:10]} 19. Rxc6 {[%clk 0:01:33]}  Bb7 {[%clk 0:00:11]} 20. Rc2 {[%clk 0:01:32]}  Nb4 {[%clk 0:00:11]} 21. Rc7 {[%clk 0:01:27]}  Bxg2 {[%clk 0:00:09]} 22. Rg1 {[%clk 0:01:23]}  Nd5 {[%clk 0:00:08]} 23. Rxe7 {[%clk 0:01:19]}  Nxe7 {[%clk 0:00:08]} 24. Rxg2 {[%clk 0:01:19]}  Rb8 {[%clk 0:00:08]} 25. Bc3 {[%clk 0:01:19]}  Nd5 {[%clk 0:00:08]} 26. Kd2 {[%clk 0:01:16]}  Nxc3 {[%clk 0:00:08]} 27. Kxc3 {[%clk 0:01:17]}  Rc8+ {[%clk 0:00:09]} 28. Kd3 {[%clk 0:01:15]}  Rc1 {[%clk 0:00:09]} 29. f4 {[%clk 0:01:13]}  f5 {[%clk 0:00:06]} 30. d5 {[%clk 0:01:13]}  Rd1+ {[%clk 0:00:05]} 31. Rd2 {[%clk 0:01:12]}  Ra1 {[%clk 0:00:02]} 32. a3 {[%clk 0:01:12]}  Kf7 {[%clk 0:00:02]} 33. Kd4 {[%clk 0:01:12]}  Ke7 {[%clk 0:00:03]} 34. Ke5 {[%clk 0:01:11]}  Re1 {[%clk 0:00:03]} 35. Rd3 {[%clk 0:01:10]}  g6 {[%clk 0:00:04]} 36. d6+ {[%clk 0:01:10]}  Kd7 {[%clk 0:00:04]} 37. Rc3 {[%clk 0:01:11]}  a5 {[%clk 0:00:05]} 38. Rc7+ {[%clk 0:01:11]}  Kd8 {[%clk 0:00:06]} 39. Rc3 {[%clk 0:01:10]}  Kd7 {[%clk 0:00:06]} 40. a4 {[%clk 0:01:09]}  Re2 {[%clk 0:00:05]} 41. h4 {[%clk 0:01:02]}  Rxb2 {[%clk 0:00:05]} 42. Rc7+ {[%clk 0:01:02]}  Kd8 {[%clk 0:00:06]} 43. Ke6 {[%clk 0:01:02]}  Rb4 {[%clk 0:00:04]} 44. Rxh7 {[%clk 0:00:53]}  Re4+ {[%clk 0:00:04]} 45. Kf6 {[%clk 0:00:52]}  Rxa4 {[%clk 0:00:05]} 46. Kxg6 {[%clk 0:00:51]}  Ra3 {[%clk 0:00:04]} 47. Kxf5 {[%clk 0:00:51]}  Rxe3 {[%clk 0:00:05]} 48. Ra7 {[%clk 0:00:50]}  Rh3 {[%clk 0:00:03]} 49. Kg4 {[%clk 0:00:49]}  Rh1 {[%clk 0:00:03]} 50. h5 {[%clk 0:00:47]}  Rg1+ {[%clk 0:00:03]} 51. Kf5 {[%clk 0:00:47]}  Rh1 {[%clk 0:00:02]} 52. Ke6 {[%clk 0:00:42]}  Re1+ {[%clk 0:00:02]} 53. Kf6 {[%clk 0:00:43]}  Rh1 {[%clk 0:00:02]} 54. Rxa5 {[%clk 0:00:39]}  Kd7 {[%clk 0:00:03]} 55. Ke5 {[%clk 0:00:39]}  Re1+ {[%clk 0:00:03]} 56. Kf6 {[%clk 0:00:37]}  Rh1 {[%clk 0:00:04]} 57. Kg6 {[%clk 0:00:36]}  Rg1+ {[%clk 0:00:03]} 58. Rg5 {[%clk 0:00:36]}  Rf1 {[%clk 0:00:04]} 59. f5 {[%clk 0:00:36]}  Kxd6 {[%clk 0:00:05]} 60. h6 {[%clk 0:00:36]}  Ke7 {[%clk 0:00:05]} 61. Kg7 {[%clk 0:00:35]}  Ra1 {[%clk 0:00:05]} 62. f6+ {[%clk 0:00:35]}  Ke6 {[%clk 0:00:05]} 63. h7 {[%clk 0:00:34]}  Ra7+ {[%clk 0:00:05]} 64. Kg6 {[%clk 0:00:35]}  Ra8 {[%clk 0:00:05]} 65. Rh5 {[%clk 0:00:33]}  Ra1 {[%clk 0:00:05]} 66. h8=Q {[%clk 0:00:31]}  Rg1+ {[%clk 0:00:06]} 67. Rg5 {[%clk 0:00:30]}  Rf1 {[%clk 0:00:05]} 68. Qe8+ {[%clk 0:00:29]}  Kd6 {[%clk 0:00:06]} 69. Qe5+ {[%clk 0:00:28]}  Kc6 {[%clk 0:00:06]} 70. Rg2 {[%clk 0:00:29]}  Rc1 {[%clk 0:00:06]} 71. Rd2 {[%clk 0:00:28]}  Kb6 {[%clk 0:00:05]} 72. Qb8+ {[%clk 0:00:27]}  Kc5 {[%clk 0:00:04]} 73. Qc7+ {[%clk 0:00:27]}  Kb4 {[%clk 0:00:05]} 74. Qxc1 {[%clk 0:00:28]}  Ka4 {[%clk 0:00:06]} 75. Rb2 {[%clk 0:00:27]} 1-0


[Site "https://www.chess.com"]

[Event "Early Titled Tuesday Blitz | February 8 2022"]
[White "Moiseenko, Alexander"]
[Black "Bodnaruk, Anastasia"]
[WhiteFideId "14102560"]
[BlackFideId "4181751"]
[WhiteElo "2577"]
[BlackElo "2393"]
[Result "0-1"]
[Round "04"]
[TimeControl "180+1"]
[Date "2022.02.08"]
[WhiteClock "0:00:01"]
[BlackClock "0:00:09"]

1. d4 {[%clk 0:02:57]}  Nf6 {[%clk 0:02:59]} 2. c4 {[%clk 0:02:55]}  g6 {[%clk 0:02:59]} 3. Nc3 {[%clk 0:02:53]}  Bg7 {[%clk 0:03:00]} 4. e4 {[%clk 0:02:53]}  d6 {[%clk 0:03:00]} 5. f3 {[%clk 0:02:54]}  O-O {[%clk 0:02:59]} 6. Be3 {[%clk 0:02:54]}  c5 {[%clk 0:03:00]} 7. Nge2 {[%clk 0:02:53]}  Nc6 {[%clk 0:02:59]} 8. Qd2 {[%clk 0:02:54]}  Qa5 {[%clk 0:02:52]} 9. Rd1 {[%clk 0:02:45]}  e5 {[%clk 0:02:30]} 10. dxc5 {[%clk 0:02:41]}  dxc5 {[%clk 0:02:29]} 11. Nd5 {[%clk 0:02:41]}  Qxd2+ {[%clk 0:02:26]} 12. Rxd2 {[%clk 0:02:41]}  Nxd5 {[%clk 0:02:21]} 13. cxd5 {[%clk 0:02:40]}  Nd4 {[%clk 0:02:21]} 14. Nxd4 {[%clk 0:02:35]}  exd4 {[%clk 0:02:16]} 15. Bg5 {[%clk 0:02:31]}  f5 {[%clk 0:02:04]} 16. Be7 {[%clk 0:02:23]}  Re8 {[%clk 0:02:04]} 17. d6 {[%clk 0:02:23]}  Bf8 {[%clk 0:01:44]} 18. Bb5 {[%clk 0:01:26]}  Bxe7 {[%clk 0:01:39]} 19. Bxe8 {[%clk 0:01:24]}  Bxd6 {[%clk 0:01:39]} 20. Ba4 {[%clk 0:01:17]}  Be6 {[%clk 0:01:32]} 21. Bb3 {[%clk 0:00:50]}  Bxb3 {[%clk 0:01:17]} 22. axb3 {[%clk 0:00:49]}  fxe4 {[%clk 0:01:13]} 23. fxe4 {[%clk 0:00:50]}  Re8 {[%clk 0:01:14]} 24. Re2 {[%clk 0:00:42]}  Bf4 {[%clk 0:01:13]} 25. Kd1 {[%clk 0:00:24]}  d3 {[%clk 0:01:08]} 26. Ree1 {[%clk 0:00:24]}  b5 {[%clk 0:01:08]} 27. e5 {[%clk 0:00:17]}  Re6 {[%clk 0:00:42]} 28. Rhf1 {[%clk 0:00:12]}  Bg5 {[%clk 0:00:37]} 29. h4 {[%clk 0:00:06]}  Bxh4 {[%clk 0:00:28]} 30. Re3 {[%clk 0:00:06]}  c4 {[%clk 0:00:27]} 31. bxc4 {[%clk 0:00:05]}  bxc4 {[%clk 0:00:27]} 32. Re4 {[%clk 0:00:06]}  Bg5 {[%clk 0:00:21]} 33. Rg4 {[%clk 0:00:02]}  Ra6 {[%clk 0:00:18]} 34. Rxg5 {[%clk 0:00:02]}  Ra1+ {[%clk 0:00:18]} 35. Kd2 {[%clk 0:00:03]}  Rxf1 {[%clk 0:00:18]} 36. Rg4 {[%clk 0:00:03]}  Rf2+ {[%clk 0:00:18]} 37. Kd1 {[%clk 0:00:02]}  Rxb2 {[%clk 0:00:11]} 38. Rxc4 {[%clk 0:00:03]}  Rxg2 {[%clk 0:00:11]} 39. Rc7 {[%clk 0:00:01]}  Re2 {[%clk 0:00:09]} 40. Re7 {[%clk 0:00:01]}  h5 {[%clk 0:00:09]} 0-1


[Site "https://www.chess.com"]

[Event "Early Titled Tuesday Blitz | February 8 2022"]
[White "Molina, Roberto Junio Brito"]
[Black "Khripachenko, Alexander"]
[WhiteFideId "2109450"]
[BlackFideId "54184975"]
[WhiteElo "2402"]
[BlackElo "2177"]
[Result "1-0"]
[Round "04"]
[TimeControl "180+1"]
[Date "2022.02.08"]
[WhiteClock "0:00:21"]
[BlackClock "0:00:26"]

1. d4 {[%clk 0:01:44]}  Nf6 {[%clk 0:02:58]} 2. Nf3 {[%clk 0:01:43]}  g6 {[%clk 0:02:59]} 3. e3 {[%clk 0:01:43]}  Bg7 {[%clk 0:02:59]} 4. b3 {[%clk 0:01:43]}  O-O {[%clk 0:03:00]} 5. Bb2 {[%clk 0:01:43]}  d6 {[%clk 0:03:01]} 6. Be2 {[%clk 0:01:42]}  Nbd7 {[%clk 0:03:01]} 7. O-O {[%clk 0:01:42]}  e5 {[%clk 0:03:02]} 8. c4 {[%clk 0:01:43]}  e4 {[%clk 0:03:00]} 9. Nfd2 {[%clk 0:01:42]}  Re8 {[%clk 0:03:01]} 10. Nc3 {[%clk 0:01:42]}  Nf8 {[%clk 0:03:01]} 11. Qc2 {[%clk 0:01:42]}  Bf5 {[%clk 0:03:01]} 12. Rae1 {[%clk 0:01:42]}  h5 {[%clk 0:03:01]} 13. Qb1 {[%clk 0:01:42]}  N8h7 {[%clk 0:02:59]} 14. Bd1 {[%clk 0:01:42]}  h4 {[%clk 0:02:57]} 15. Bc2 {[%clk 0:01:42]}  Ng5 {[%clk 0:02:54]} 16. f3 {[%clk 0:01:40]}  Qe7 {[%clk 0:00:42]} 17. f4 {[%clk 0:01:22]}  Ngh7 {[%clk 0:00:41]} 18. d5 {[%clk 0:01:23]}  c6 {[%clk 0:00:39]} 19. dxc6 {[%clk 0:01:18]}  bxc6 {[%clk 0:00:40]} 20. Ne2 {[%clk 0:01:16]}  c5 {[%clk 0:00:38]} 21. h3 {[%clk 0:01:14]}  Rad8 {[%clk 0:00:38]} 22. Rd1 {[%clk 0:01:12]}  Qe6 {[%clk 0:00:37]} 23. Kh2 {[%clk 0:01:06]}  Qc8 {[%clk 0:00:33]} 24. Nc3 {[%clk 0:00:59]}  g5 {[%clk 0:00:33]} 25. Ne2 {[%clk 0:00:52]}  g4 {[%clk 0:00:32]} 26. Rg1 {[%clk 0:00:44]}  Kh8 {[%clk 0:00:31]} 27. Kh1 {[%clk 0:00:35]}  Qe6 {[%clk 0:00:31]} 28. Nf1 {[%clk 0:00:30]}  Rg8 {[%clk 0:00:31]} 29. Nh2 {[%clk 0:00:29]}  gxh3 {[%clk 0:00:31]} 30. gxh3 {[%clk 0:00:30]}  Bxh3 {[%clk 0:00:32]} 31. f5 {[%clk 0:00:26]}  Bxf5 {[%clk 0:00:29]} 32. Nf4 {[%clk 0:00:26]}  Qd7 {[%clk 0:00:29]} 33. Rdf1 {[%clk 0:00:25]}  Ng4 {[%clk 0:00:30]} 34. Nxg4 {[%clk 0:00:24]}  Bxg4 {[%clk 0:00:29]} 35. Qa1 {[%clk 0:00:22]}  f5 {[%clk 0:00:26]} 36. Ng6# {[%clk 0:00:21]} 1-0


[Site "https://www.chess.com"]

[Event "Early Titled Tuesday Blitz | February 8 2022"]
[White "Moskvin, Anatoly"]
[Black "Coto Mederos, Michel"]
[WhiteFideId "24199990"]
[BlackFideId "3508528"]
[WhiteElo "2079"]
[BlackElo "2427"]
[Result "1/2-1/2"]
[Round "04"]
[TimeControl "180+1"]
[Date "2022.02.08"]
[WhiteClock "0:00:11"]
[BlackClock "0:00:08"]

1. e4 {[%clk 0:03:00]}  e5 {[%clk 0:02:55]} 2. Nf3 {[%clk 0:03:01]}  Nc6 {[%clk 0:02:53]} 3. Bc4 {[%clk 0:03:01]}  Bc5 {[%clk 0:02:50]} 4. c3 {[%clk 0:03:01]}  Nf6 {[%clk 0:02:49]} 5. d3 {[%clk 0:03:01]}  d6 {[%clk 0:02:48]} 6. a4 {[%clk 0:03:02]}  a6 {[%clk 0:02:48]} 7. Bb3 {[%clk 0:02:58]}  h6 {[%clk 0:02:44]} 8. Nbd2 {[%clk 0:02:57]}  Ba7 {[%clk 0:02:40]} 9. h3 {[%clk 0:02:56]}  O-O {[%clk 0:02:38]} 10. Nf1 {[%clk 0:02:56]}  d5 {[%clk 0:02:38]} 11. Qe2 {[%clk 0:02:55]}  dxe4 {[%clk 0:02:32]} 12. dxe4 {[%clk 0:02:55]}  Qe7 {[%clk 0:02:29]} 13. Ng3 {[%clk 0:02:54]}  Be6 {[%clk 0:02:27]} 14. Bc2 {[%clk 0:02:45]}  Rad8 {[%clk 0:02:14]} 15. Nh4 {[%clk 0:02:41]}  Na5 {[%clk 0:01:50]} 16. Nhf5 {[%clk 0:02:40]}  Qd7 {[%clk 0:01:44]} 17. Be3 {[%clk 0:01:54]}  Bxe3 {[%clk 0:01:38]} 18. Nxe3 {[%clk 0:01:54]}  Bb3 {[%clk 0:01:16]} 19. O-O {[%clk 0:00:38]}  g6 {[%clk 0:01:01]} 20. Rfd1 {[%clk 0:00:35]}  Qe6 {[%clk 0:00:56]} 21. Bxb3 {[%clk 0:00:23]}  Nxb3 {[%clk 0:00:52]} 22. Rxd8 {[%clk 0:00:24]}  Rxd8 {[%clk 0:00:50]} 23. Rd1 {[%clk 0:00:24]}  Rd7 {[%clk 0:00:45]} 24. Rxd7 {[%clk 0:00:23]}  Qxd7 {[%clk 0:00:46]} 25. Qc4 {[%clk 0:00:23]}  Nd2 {[%clk 0:00:41]} 26. Qc5 {[%clk 0:00:19]}  Ndxe4 {[%clk 0:00:22]} 27. Nxe4 {[%clk 0:00:18]}  Nxe4 {[%clk 0:00:22]} 28. Qxe5 {[%clk 0:00:19]}  Qxa4 {[%clk 0:00:18]} 29. Nd5 {[%clk 0:00:16]}  Nd6 {[%clk 0:00:09]} 30. Nf6+ {[%clk 0:00:15]}  Kf8 {[%clk 0:00:08]} 31. Nh7+ {[%clk 0:00:16]}  Kg8 {[%clk 0:00:08]} 32. Nf6+ {[%clk 0:00:16]}  Kf8 {[%clk 0:00:09]} 33. Nh7+ {[%clk 0:00:10]}  Kg8 {[%clk 0:00:08]} 34. Nf6+ {[%clk 0:00:11]} 1/2-1/2


[Site "https://www.chess.com"]

[Event "Early Titled Tuesday Blitz | February 8 2022"]
[White "Mosutha, Thuso"]
[Black "Pesotskiy, Mikhail"]
[WhiteFideId "11302550"]
[BlackFideId "34164453"]
[WhiteElo "2028"]
[BlackElo "2010"]
[Result "0-1"]
[Round "04"]
[TimeControl "180+1"]
[Date "2022.02.08"]
[WhiteClock "0:00:01"]
[BlackClock "0:00:35"]

1. d4 {[%clk 0:03:00]}  Nf6 {[%clk 0:02:59]} 2. c4 {[%clk 0:03:00]}  e6 {[%clk 0:02:59]} 3. Nf3 {[%clk 0:03:00]}  Bb4+ {[%clk 0:03:00]} 4. Bd2 {[%clk 0:03:00]}  a5 {[%clk 0:03:01]} 5. a3 {[%clk 0:03:00]}  Bxd2+ {[%clk 0:03:01]} 6. Nbxd2 {[%clk 0:03:00]}  b6 {[%clk 0:03:01]} 7. g3 {[%clk 0:03:01]}  Bb7 {[%clk 0:03:01]} 8. Bg2 {[%clk 0:03:01]}  O-O {[%clk 0:03:01]} 9. O-O {[%clk 0:03:01]}  d6 {[%clk 0:03:01]} 10. Rc1 {[%clk 0:03:00]}  Nbd7 {[%clk 0:03:00]} 11. Qc2 {[%clk 0:02:57]}  Qe7 {[%clk 0:02:59]} 12. e4 {[%clk 0:02:57]}  e5 {[%clk 0:03:00]} 13. d5 {[%clk 0:02:55]}  a4 {[%clk 0:03:00]} 14. Ne1 {[%clk 0:02:51]}  Nc5 {[%clk 0:03:00]} 15. Nd3 {[%clk 0:02:51]}  Nxd3 {[%clk 0:03:01]} 16. Qxd3 {[%clk 0:02:52]}  Nd7 {[%clk 0:03:01]} 17. Qe3 {[%clk 0:02:47]}  Nc5 {[%clk 0:03:02]} 18. f4 {[%clk 0:02:41]}  Ba6 {[%clk 0:02:56]} 19. Kh1 {[%clk 0:02:38]}  b5 {[%clk 0:02:55]} 20. fxe5 {[%clk 0:02:28]}  Qxe5 {[%clk 0:02:54]} 21. Qc3 {[%clk 0:02:12]}  Rfe8 {[%clk 0:02:49]} 22. Rfe1 {[%clk 0:02:03]}  Rab8 {[%clk 0:02:48]} 23. cxb5 {[%clk 0:02:01]}  Rxb5 {[%clk 0:02:40]} 24. Qxe5 {[%clk 0:01:00]}  Rxe5 {[%clk 0:02:41]} 25. Nc4 {[%clk 0:00:58]}  Re8 {[%clk 0:02:34]} 26. Bf1 {[%clk 0:00:56]}  Rbb8 {[%clk 0:02:08]} 27. e5 {[%clk 0:00:53]}  Bxc4 {[%clk 0:01:47]} 28. Bxc4 {[%clk 0:00:54]}  Kf8 {[%clk 0:01:32]} 29. exd6 {[%clk 0:00:39]}  cxd6 {[%clk 0:01:33]} 30. Rxe8+ {[%clk 0:00:35]}  Kxe8 {[%clk 0:01:34]} 31. Rc2 {[%clk 0:00:32]}  Ke7 {[%clk 0:01:33]} 32. Kg2 {[%clk 0:00:31]}  Kf6 {[%clk 0:01:33]} 33. Kf3 {[%clk 0:00:29]}  Ke5 {[%clk 0:01:34]} 34. Ke3 {[%clk 0:00:27]}  f5 {[%clk 0:01:32]} 35. Rf2 {[%clk 0:00:26]}  g5 {[%clk 0:01:31]} 36. Bd3 {[%clk 0:00:17]}  Nxd3 {[%clk 0:00:52]} 37. Kxd3 {[%clk 0:00:18]}  f4 {[%clk 0:00:53]} 38. Kc4 {[%clk 0:00:10]}  Ke4 {[%clk 0:00:52]} 39. Re2+ {[%clk 0:00:03]}  Kf3 {[%clk 0:00:52]} 40. Re7 {[%clk 0:00:02]}  fxg3 {[%clk 0:00:48]} 41. hxg3 {[%clk 0:00:03]}  h5 {[%clk 0:00:49]} 42. Rg7 {[%clk 0:00:01]}  g4 {[%clk 0:00:48]} 43. Rh7 {[%clk 0:00:02]}  Kxg3 {[%clk 0:00:48]} 44. Rxh5 {[%clk 0:00:02]}  Rxb2 {[%clk 0:00:42]} 45. Rh6 {[%clk 0:00:03]}  Rb6 {[%clk 0:00:42]} 46. Kd4 {[%clk 0:00:02]}  Kf3 {[%clk 0:00:41]} 47. Rf6+ {[%clk 0:00:02]}  Kg2 {[%clk 0:00:41]} 48. Ke4 {[%clk 0:00:02]}  g3 {[%clk 0:00:42]} 49. Kf5 {[%clk 0:00:02]}  Kh2 {[%clk 0:00:39]} 50. Rh6+ {[%clk 0:00:02]}  Kg1 {[%clk 0:00:39]} 51. Rg6 {[%clk 0:00:02]}  g2 {[%clk 0:00:38]} 52. Ke4 {[%clk 0:00:02]}  Rb2 {[%clk 0:00:37]} 53. Ke3 {[%clk 0:00:02]}  Rb3+ {[%clk 0:00:36]} 54. Ke4 {[%clk 0:00:02]}  Rxa3 {[%clk 0:00:37]} 55. Rxd6 {[%clk 0:00:02]}  Ra2 {[%clk 0:00:36]} 56. Rg6 {[%clk 0:00:02]}  Kf1 {[%clk 0:00:35]} 57. Rf6+ {[%clk 0:00:01]}  Rf2 {[%clk 0:00:35]} 0-1


[Site "https://www.chess.com"]

[Event "Early Titled Tuesday Blitz | February 8 2022"]
[White "Navara, David"]
[Black "Srihari L R"]
[WhiteFideId "309095"]
[BlackFideId "46617116"]
[WhiteElo "2686"]
[BlackElo "2121"]
[Result "1-0"]
[Round "04"]
[TimeControl "180+1"]
[Date "2022.02.08"]
[WhiteClock "0:00:33"]
[BlackClock "0:00:17"]

1. d4 {[%clk 0:03:00]}  d5 {[%clk 0:02:56]} 2. c4 {[%clk 0:03:00]}  e6 {[%clk 0:02:55]} 3. Nc3 {[%clk 0:03:01]}  Nf6 {[%clk 0:02:55]} 4. cxd5 {[%clk 0:03:01]}  Nxd5 {[%clk 0:02:55]} 5. e3 {[%clk 0:03:01]}  c5 {[%clk 0:02:53]} 6. Bd3 {[%clk 0:03:01]}  Nc6 {[%clk 0:02:52]} 7. Nf3 {[%clk 0:02:57]}  Be7 {[%clk 0:02:52]} 8. O-O {[%clk 0:02:57]}  O-O {[%clk 0:02:51]} 9. a3 {[%clk 0:02:51]}  h6 {[%clk 0:02:38]} 10. Qe2 {[%clk 0:02:42]}  b6 {[%clk 0:02:33]} 11. Rd1 {[%clk 0:02:28]}  cxd4 {[%clk 0:02:30]} 12. exd4 {[%clk 0:02:26]}  Bb7 {[%clk 0:02:29]} 13. Bb1 {[%clk 0:01:52]}  Nxc3 {[%clk 0:02:05]} 14. bxc3 {[%clk 0:01:52]}  Na5 {[%clk 0:02:05]} 15. Ne5 {[%clk 0:01:33]}  Rc8 {[%clk 0:01:49]} 16. Rd3 {[%clk 0:01:23]}  Ba6 {[%clk 0:01:40]} 17. Bxh6 {[%clk 0:01:23]}  Bxd3 {[%clk 0:01:29]} 18. Qxd3 {[%clk 0:01:24]}  f5 {[%clk 0:01:28]} 19. Ba2 {[%clk 0:01:12]}  Qd6 {[%clk 0:01:27]} 20. Bf4 {[%clk 0:01:02]}  Rfe8 {[%clk 0:01:18]} 21. Qxf5 {[%clk 0:00:52]}  Bf6 {[%clk 0:01:05]} 22. Qh5 {[%clk 0:00:44]}  b5 {[%clk 0:00:48]} 23. Bb1 {[%clk 0:00:32]}  Bxe5 {[%clk 0:00:27]} 24. Bxe5 {[%clk 0:00:32]}  Qe7 {[%clk 0:00:17]} 25. Qh7+ {[%clk 0:00:31]}  Kf8 {[%clk 0:00:17]} 26. Qh8+ {[%clk 0:00:32]}  Kf7 {[%clk 0:00:17]} 27. Qxg7# {[%clk 0:00:33]} 1-0


[Site "https://www.chess.com"]

[Event "Early Titled Tuesday Blitz | February 8 2022"]
[White "Nazari, Arad"]
[Black "Begunov, Konstantin"]
[WhiteFideId "12577324"]
[BlackFideId "4118510"]
[WhiteElo "2120"]
[BlackElo "2262"]
[Result "1-0"]
[Round "04"]
[TimeControl "180+1"]
[Date "2022.02.08"]
[WhiteClock "0:01:52"]
[BlackClock "0:00:08"]

1. e4 {[%clk 0:03:00]}  c5 {[%clk 0:02:57]} 2. Nf3 {[%clk 0:03:01]}  d6 {[%clk 0:02:56]} 3. Bb5+ {[%clk 0:03:01]}  Bd7 {[%clk 0:02:56]} 4. Bxd7+ {[%clk 0:03:00]}  Qxd7 {[%clk 0:02:57]} 5. O-O {[%clk 0:03:01]}  Nf6 {[%clk 0:02:58]} 6. Re1 {[%clk 0:03:01]}  Nc6 {[%clk 0:02:58]} 7. c3 {[%clk 0:03:02]}  e6 {[%clk 0:02:58]} 8. d4 {[%clk 0:03:03]}  cxd4 {[%clk 0:02:59]} 9. cxd4 {[%clk 0:03:04]}  d5 {[%clk 0:03:00]} 10. e5 {[%clk 0:03:04]}  Ne4 {[%clk 0:03:00]} 11. a3 {[%clk 0:03:05]}  Be7 {[%clk 0:03:00]} 12. Qd3 {[%clk 0:03:06]}  Rc8 {[%clk 0:02:51]} 13. Nbd2 {[%clk 0:03:06]}  Nxd2 {[%clk 0:02:49]} 14. Bxd2 {[%clk 0:03:07]}  O-O {[%clk 0:02:43]} 15. Re3 {[%clk 0:03:07]}  f5 {[%clk 0:02:38]} 16. exf6 {[%clk 0:03:07]}  Bxf6 {[%clk 0:02:38]} 17. Rae1 {[%clk 0:03:07]}  Rce8 {[%clk 0:02:37]} 18. b4 {[%clk 0:03:07]}  a6 {[%clk 0:02:36]} 19. a4 {[%clk 0:03:07]}  g6 {[%clk 0:02:06]} 20. Bc3 {[%clk 0:03:03]}  Bg7 {[%clk 0:01:57]} 21. Qe2 {[%clk 0:03:03]}  Nd8 {[%clk 0:01:54]} 22. b5 {[%clk 0:03:02]}  axb5 {[%clk 0:01:53]} 23. axb5 {[%clk 0:03:03]}  h6 {[%clk 0:01:42]} 24. Ba5 {[%clk 0:03:01]}  Rf6 {[%clk 0:00:55]} 25. Ne5 {[%clk 0:02:57]}  Qd6 {[%clk 0:00:50]} 26. Bxd8 {[%clk 0:02:50]}  Qxd8 {[%clk 0:00:47]} 27. g3 {[%clk 0:02:40]}  Kh7 {[%clk 0:00:46]} 28. Ng4 {[%clk 0:02:39]}  Rff8 {[%clk 0:00:32]} 29. Rxe6 {[%clk 0:02:33]}  Rxe6 {[%clk 0:00:32]} 30. Qxe6 {[%clk 0:02:33]}  Bxd4 {[%clk 0:00:32]} 31. Rd1 {[%clk 0:02:33]}  Qb6 {[%clk 0:00:18]} 32. Qe7+ {[%clk 0:01:52]}  Bg7 {[%clk 0:00:17]} 33. Rxd5 {[%clk 0:01:52]}  h5 {[%clk 0:00:15]} 34. Rd7 {[%clk 0:01:52]}  Rg8 {[%clk 0:00:10]} 35. Nf6+ {[%clk 0:01:52]}  Kh8 {[%clk 0:00:08]} 36. Nxg8 {[%clk 0:01:52]} 1-0


[Site "https://www.chess.com"]

[Event "Early Titled Tuesday Blitz | February 8 2022"]
[White "Obolenskikh, Dmitry"]
[Black "Hamley, Ryan"]
[WhiteFideId "4156013"]
[BlackFideId "30959497"]
[WhiteElo "2512"]
[BlackElo "2487"]
[Result "1-0"]
[Round "04"]
[TimeControl "180+1"]
[Date "2022.02.08"]
[WhiteClock "0:00:20"]
[BlackClock "0:00:04"]

1. Nf3 {[%clk 0:03:00]}  g6 {[%clk 0:02:59]} 2. e4 {[%clk 0:03:00]}  Bg7 {[%clk 0:03:00]} 3. d4 {[%clk 0:03:01]}  c6 {[%clk 0:03:00]} 4. Nc3 {[%clk 0:02:59]}  d5 {[%clk 0:03:00]} 5. h3 {[%clk 0:02:59]}  dxe4 {[%clk 0:03:00]} 6. Nxe4 {[%clk 0:02:59]}  Nf6 {[%clk 0:03:01]} 7. Nxf6+ {[%clk 0:02:59]}  exf6 {[%clk 0:03:02]} 8. Bc4 {[%clk 0:02:59]}  Na6 {[%clk 0:02:54]} 9. Qe2+ {[%clk 0:02:55]}  Qe7 {[%clk 0:02:45]} 10. Qxe7+ {[%clk 0:02:56]}  Kxe7 {[%clk 0:02:46]} 11. Bf4 {[%clk 0:02:54]}  Re8 {[%clk 0:02:44]} 12. O-O-O {[%clk 0:02:51]}  Kf8 {[%clk 0:02:43]} 13. Rhe1 {[%clk 0:02:48]}  Bd7 {[%clk 0:02:37]} 14. Bd6+ {[%clk 0:02:45]}  Kg8 {[%clk 0:02:37]} 15. Rxe8+ {[%clk 0:02:44]}  Rxe8 {[%clk 0:02:38]} 16. Re1 {[%clk 0:02:42]}  Rd8 {[%clk 0:02:37]} 17. Re7 {[%clk 0:02:25]}  Be6 {[%clk 0:02:15]} 18. Bxe6 {[%clk 0:02:07]}  fxe6 {[%clk 0:01:49]} 19. Rxe6 {[%clk 0:01:55]}  Rd7 {[%clk 0:01:45]} 20. Bf4 {[%clk 0:01:44]}  Kf7 {[%clk 0:01:44]} 21. Re2 {[%clk 0:01:41]}  Nb4 {[%clk 0:01:44]} 22. Bd2 {[%clk 0:01:37]}  Nd5 {[%clk 0:01:43]} 23. c4 {[%clk 0:01:34]}  Nc7 {[%clk 0:01:38]} 24. Kc2 {[%clk 0:01:30]}  Ne6 {[%clk 0:01:36]} 25. Be3 {[%clk 0:01:29]}  f5 {[%clk 0:01:34]} 26. Ne5+ {[%clk 0:01:27]}  Bxe5 {[%clk 0:01:33]} 27. dxe5 {[%clk 0:01:27]}  f4 {[%clk 0:01:32]} 28. Bxa7 {[%clk 0:01:24]}  b6 {[%clk 0:01:22]} 29. Bxb6 {[%clk 0:01:23]}  Rb7 {[%clk 0:01:22]} 30. c5 {[%clk 0:01:14]}  Nd4+ {[%clk 0:01:22]} 31. Kd3 {[%clk 0:01:14]}  Nxe2 {[%clk 0:01:22]} 32. Kxe2 {[%clk 0:01:15]}  Ke6 {[%clk 0:01:23]} 33. a4 {[%clk 0:01:13]}  Kxe5 {[%clk 0:01:23]} 34. a5 {[%clk 0:01:11]}  Ke4 {[%clk 0:01:15]} 35. a6 {[%clk 0:01:10]}  Rb8 {[%clk 0:01:15]} 36. a7 {[%clk 0:01:10]}  Ra8 {[%clk 0:01:10]} 37. b3 {[%clk 0:01:02]}  g5 {[%clk 0:01:09]} 38. f3+ {[%clk 0:01:01]}  Kd4 {[%clk 0:01:08]} 39. Kd2 {[%clk 0:01:01]}  h5 {[%clk 0:01:06]} 40. b4 {[%clk 0:00:57]}  Kc4 {[%clk 0:01:06]} 41. Kc2 {[%clk 0:00:57]}  Kd4 {[%clk 0:01:03]} 42. Kb3 {[%clk 0:00:54]}  Kd3 {[%clk 0:00:51]} 43. b5 {[%clk 0:00:53]}  cxb5 {[%clk 0:00:51]} 44. Kb4 {[%clk 0:00:54]}  Kd4 {[%clk 0:00:37]} 45. Kxb5 {[%clk 0:00:50]}  Kd5 {[%clk 0:00:37]} 46. c6 {[%clk 0:00:40]}  Kd6 {[%clk 0:00:37]} 47. Bc5+ {[%clk 0:00:37]}  Kc7 {[%clk 0:00:36]} 48. Bf2 {[%clk 0:00:37]}  Re8 {[%clk 0:00:33]} 49. Bd4 {[%clk 0:00:32]}  Kd6 {[%clk 0:00:10]} 50. Kb6 {[%clk 0:00:29]}  Rc8 {[%clk 0:00:10]} 51. Bc5+ {[%clk 0:00:26]}  Kd5 {[%clk 0:00:09]} 52. c7 {[%clk 0:00:26]}  g4 {[%clk 0:00:06]} 53. fxg4 {[%clk 0:00:24]}  hxg4 {[%clk 0:00:07]} 54. hxg4 {[%clk 0:00:24]}  Rg8 {[%clk 0:00:07]} 55. Be7 {[%clk 0:00:21]}  Ke6 {[%clk 0:00:04]} 56. Bd8 {[%clk 0:00:21]}  Rxg4 {[%clk 0:00:04]} 57. c8=Q+ {[%clk 0:00:20]} 1-0


[Site "https://www.chess.com"]